fUSD/lending_fUSD_20250428
["ID","MTS","AMOUNT","RATE_DAILY","PERIOD"]
[359258005,1745874036162,810.79,0.00038356,120]
[359258006,1745874083684,150.0,1e-08,2]
[359258007,1745874132358,50000.0,0.0003835,30]
[359258008,1745874139669,50000.0,0.0003835,31]
[359258009,1745874144505,50000.0,0.0003835,32]
[359258010,1745874149226,50000.0,0.0003835,33]
[359258011,1745874156486,50000.0,0.0003835,34]
[359258020,1745874573361,166.0,0.00037973,30]
[359258021,1745874575577,170.0,0.00033226,30]
[359258024,1745874632448,-350.0,0.00021,2]
[359258025,1745874632458,-54.4750197,0.00023,2]
[359258165,1745874638413,-345.5249803,0.00023,2]
[359258166,1745874638423,-250.0,0.000231,2]
[359258167,1745874638432,-174.60320168,0.000231,2]
[359258168,1745874638544,-75.39679832,0.000231,2]
[359258169,1745874638553,-243.24887688,0.000231,2]
[359258676,1745874643799,-6.75112312,0.000231,2]
[359258678,1745874643809,-200.0,0.000231,2]
[359258679,1745874643819,-422.4857474,0.00024394,2]
[359258854,1745874645545,-13.12439055,0.00024394,2]
[359258856,1745874645557,-441.38986205,0.00024394,2]
[359258858,1745874645567,-153.0,0.00024394,2]
[359258860,1745874645577,-1398.4780881,0.00024394,2]
[359258872,1745874645675,-535.26750463,0.00024394,2]
[359258876,1745874645708,-747.18240727,0.00024394,2]
[359258878,1745874645718,-450.0,0.00025,2]
[359258880,1745874645727,-2826.02,0.000254,2]
[359258882,1745874645737,-1200.0,0.00025416,2]
[359258884,1745874645746,-300.0,0.00025416,2]
[359258886,1745874645755,-222.74012946,0.00025417,2]
[359258888,1745874645765,-364.33672746,0.00025417,2]
[359258890,1745874645774,-300.0,0.00025899,2]
[359258892,1745874645784,-4848.98156129,0.000259,6]
[359258895,1745874645793,-579.0787285,0.0002599,2]
[359258897,1745874645802,-299.99,0.00025999,12]
[359258899,1745874645812,-4361.9078738,0.00026,2]
[359258901,1745874645821,-1715.66185493,0.00026,2]
[359258903,1745874645830,-308.00955474,0.00026,2]
[359258905,1745874645839,-796.0,0.00026394,2]
[359258907,1745874645849,-4848.9815612,0.0002659,6]
[359258909,1745874645858,-653.23,0.00026983,2]
[359258911,1745874645867,-500.0,0.00027,2]
[359258913,1745874645876,-207.4,0.0002727,2]
[359258915,1745874645885,-392.0,0.00027278,2]
[359258917,1745874645895,-4848.9815612,0.00027279,7]
[359258919,1745874645905,-1000.0,0.00027397,2]
[359258921,1745874645914,-372.12950576,0.000274,2]
[359258923,1745874645923,-1008.0,0.000274,2]
[359258925,1745874645933,-1680.0,0.00027646,2]
[359258927,1745874645942,-4848.9815612,0.00027969,7]
[359258929,1745874645951,-420.0,0.00028031,2]
[359258931,1745874645960,-1094.41763381,0.00028156,2]
[359258933,1745874645970,-200.0,0.0002843,2]
[359258935,1745874645979,-288.41,0.00028492,2]
[359258937,1745874645989,-11635.93,0.000285,2]
[359258939,1745874645999,-150.0,0.00028555,2]
[359258941,1745874646008,-250.0,0.00028619,2]
[359258943,1745874646018,-215.0738,0.00028639,2]
[359258945,1745874646027,-5118.51,0.00028648,2]
[359258947,1745874646036,-250.0,0.00028652,7]
[359258949,1745874646046,-4848.9815612,0.00028659,8]
[359258951,1745874646059,-953.54,0.00028705,2]
[359258953,1745874646068,-941.71,0.0002871,2]
[359258955,1745874646078,-500.0,0.00028854,2]
[359258957,1745874646088,-1000.0,0.00028944,2]
[359258959,1745874646099,-10200.0,0.00029,12]
[359258961,1745874646109,-550.0,0.00029,2]
[359258963,1745874646120,-2106.11,0.00029076,2]
[359258965,1745874646130,-500.0,0.00029125,2]
[359258967,1745874646139,-500.0,0.00029125,2]
[359258969,1745874646149,-150.0,0.00029125,2]
[359258971,1745874646158,-150.0,0.00029125,2]
[359258973,1745874646168,-150.0,0.00029125,2]
[359258975,1745874646178,-150.0,0.00029125,2]
[359258977,1745874646187,-150.0,0.00029125,2]
[359258979,1745874646197,-150.0,0.00029125,2]
[359258982,1745874646207,-500.0,0.00029125,2]
[359258984,1745874646216,-150.0,0.00029125,2]
[359258985,1745874646225,-277.33,0.00029125,2]
[359258988,1745874646235,-500.0,0.00029152,2]
[359258990,1745874646245,-500.0,0.00029152,2]
[359258992,1745874646254,-150.0,0.00029152,2]
[359258994,1745874646263,-150.0,0.00029152,2]
[359258996,1745874646272,-150.0,0.00029152,2]
[359259016,1745874646447,-591.22573512,0.00029152,2]
[359259019,1745874646461,-150.0,0.00029152,2]
[359259021,1745874646471,-200.0,0.00029153,2]
[359259023,1745874646480,-500.0,0.0002918,2]
[359259025,1745874646489,-500.0,0.0002918,2]
[359259027,1745874646499,-200.0,0.0002918,2]
[359259029,1745874646508,-200.0,0.0002918,2]
[359259031,1745874646518,-200.0,0.0002918,2]
[359259033,1745874646528,-200.59528374,0.0002918,2]
[359259035,1745874646537,-500.0,0.00029207,2]
[359259037,1745874646547,-500.0,0.00029207,2]
[359259039,1745874646556,-175.37,0.00029233,2]
[359259041,1745874646565,-500.0,0.00029235,2]
[359259042,1745874646575,-500.0,0.00029235,2]
[359259043,1745874646584,-653.23,0.00029247,2]
[359259044,1745874646593,-500.0,0.00029262,2]
[359259045,1745874646603,-266.74717219,0.00029262,2]
[359259046,1745874646613,-500.0,0.00029289,2]
[359259047,1745874646623,-500.0,0.00029317,2]
[359259048,1745874646632,-150.0,0.00029318,2]
[359259049,1745874646642,-500.0,0.00029344,2]
[359259050,1745874646651,-4848.9815612,0.00029348,8]
[359259051,1745874646661,-500.0,0.00029372,2]
[359259052,1745874646670,-500.0,0.00029399,2]
[359259053,1745874646683,-206.54032129,0.00029426,2]
[359259054,1745874646692,-1095.85,0.00029548,2]
[359259056,1745874646702,-2554.21,0.000296,2]
[359259058,1745874646711,-2826.02,0.000296,2]
[359259060,1745874646720,-166.66,0.00029678,2]
[359259062,1745874646730,-152.0,0.00029739,3]
[359259064,1745874646739,-300.0,0.00029858,2]
[359259066,1745874646748,-500.0,0.00029878,3]
[359259068,1745874646757,-166.0,0.0003,14]
[359259070,1745874646766,-223.0315306,0.00030008,2]
[359259072,1745874646775,-4848.9815612,0.00030038,9]
[359259074,1745874646785,-2351.0,0.00030072,2]
[359259076,1745874646794,-150.0,0.00030081,2]
[359259078,1745874646804,-531.34,0.00030137,2]
[359259080,1745874646814,-587.0,0.00030339,2]
[359259083,1745874646824,-166.0,0.00030411,14]
[359259084,1745874646833,-2106.11,0.0003053,2]
[359259086,1745874646843,-4848.9815612,0.00030728,9]
[359259089,1745874646854,-150.0,0.00030843,2]
[359259091,1745874646864,-152.0,0.00030986,4]
[359259093,1745874646874,-600.0,0.00031,2]
[359259095,1745874646883,-300.0,0.00031227,2]
[359259097,1745874646893,-231.28369723,0.00031377,2]
[359259099,1745874646903,-4848.9815612,0.00031417,9]
[359259101,1745874646912,-653.23,0.00031511,2]
[359259103,1745874646921,-150.0,0.00031606,2]
[359259105,1745874646931,-166.0,0.00031644,14]
[359259107,1745874646940,-2106.11,0.00031984,2]
[359259109,1745874646950,-12000.0,0.00032,14]
[359259111,1745874646959,-308.2786,0.00032007,2]
[359259113,1745874646968,-1824.76311442,0.00032028,2]
[359259115,1745874646978,-4848.9815612,0.00032107,10]
[359259117,1745874646987,-166.66,0.00032128,2]
[359259119,1745874646996,-152.0,0.00032233,5]
[359259121,1745874647006,-13482.0,0.00032322,2]
[359259123,1745874647015,-150.0,0.00032369,2]
[359259125,1745874647024,-184.31342003,0.0003271,2]
[359259127,1745874647033,-500.0,0.0003271,2]
[359259129,1745874647042,-248.9920701,0.0003271,2]
[359259131,1745874647055,-173.53413842,0.0003271,2]
[359259133,1745874647064,-500.0,0.0003271,2]
[359259135,1745874647073,-179.14341039,0.0003271,2]
[359259137,1745874647082,-326.69074808,0.0003271,2]
[359259139,1745874647092,-500.0,0.0003271,2]
[359259141,1745874647101,-500.0,0.0003271,2]
[359259143,1745874647110,-500.0,0.0003271,2]
[359259145,1745874647119,-500.0,0.0003271,2]
[359259147,1745874647128,-500.0,0.0003271,2]
[359259149,1745874647137,-213.73257263,0.0003271,2]
[359259151,1745874647146,-500.0,0.0003271,2]
[359259153,1745874647156,-500.0,0.0003271,2]
[359259155,1745874647165,-500.0,0.0003271,2]
[359259157,1745874647174,-3292.0,0.00032711,3]
[359259159,1745874647183,-239.84119403,0.00032746,2]
[359259161,1745874647193,-4848.9815612,0.00032797,10]
[359259163,1745874647203,-823.0,0.00032837,2]
[359259165,1745874647213,-1824.76311438,0.00032842,2]
[359259167,1745874647222,-1007.62646762,0.000329,2]
[359259169,1745874647232,-650.0,0.00033,2]
[359259171,1745874647241,-150.0,0.00033132,2]
[359259173,1745874647250,-1000.0,0.00033165,2]
[359259175,1745874647259,-2106.11,0.00033438,2]
[359259177,1745874647270,-152.0,0.0003348,6]
[359259179,1745874647279,-4848.9815612,0.00033486,11]
[359259181,1745874647288,-1824.76311438,0.00033656,2]
[359259183,1745874647298,-653.23,0.00033775,2]
[359259185,1745874647307,-5567.0,0.000338,3]
[359259187,1745874647318,-150.0,0.00033894,2]
[359259189,1745874647327,-175.37,0.00034058,2]
[359259191,1745874647337,-152.0,0.00034103,3]
[359259193,1745874647347,-248.71531821,0.00034115,2]
[359259195,1745874647357,-4848.9815612,0.00034176,11]
[359259197,1745874647366,-2826.02,0.000342,2]
[359259199,1745874647375,-5567.0,0.000342,5]
[359259201,1745874647384,-195.0,0.00034217,5]
[359259203,1745874647393,-1824.76311438,0.00034469,2]
[359259205,1745874647403,-150.0,0.00034548,10]
[359259207,1745874647411,-166.66,0.00034577,2]
[359259209,1745874647421,-150.0,0.00034657,2]
[359259211,1745874647430,-152.0,0.00034726,7]
[359259213,1745874647439,-200.0,0.00034859,2]
[359259215,1745874647449,-154.96,0.00034859,2]
[359259217,1745874647459,-1000.0,0.00034859,2]
[359259219,1745874647468,-23297.46,0.00034859,2]
[359259221,1745874647478,-300.0,0.00034859,2]
[359259223,1745874647488,-153.63,0.00034859,2]
[359259225,1745874647497,-4848.9815612,0.00034866,12]
[359259227,1745874647507,-2106.11,0.00034891,2]
[359259228,1745874647516,-1000.0,0.00035,2]
[359259230,1745874647525,-700.0,0.00035,2]
[359259232,1745874647534,-888.0,0.00035,5]
[359259234,1745874647553,-258.55,0.00035162,14]
[359259236,1745874647562,-1824.76311438,0.00035283,2]
[359259238,1745874647571,-150.0,0.0003542,2]
[359259240,1745874647580,-257.91778498,0.00035484,2]
[359259242,1745874647590,-1152.0,0.00035541,2]
[359259244,1745874647600,-4848.9815612,0.00035555,12]
[359259246,1745874647610,-2427.0,0.00035581,3]
[359259248,1745874647619,-365.42376709,0.00035753,14]
[359259250,1745874647628,-3829.54501258,0.0003589,2]
[359259252,1745874647638,-210.85943392,0.00035938,10]
[359259254,1745874647647,-15475.9840551,0.0003595,2]
[359259256,1745874647656,-6435.23009449,0.00035958,5]
[359259258,1745874647665,-15475.9840551,0.0003597,2]
[359259260,1745874647675,-508.12496352,0.00035973,5]
[359259262,1745874647683,-500.0,0.00035973,5]
[359259264,1745874647693,-500.0,0.00035973,5]
[359259266,1745874647702,-500.0,0.00035973,2]
[359259268,1745874647712,-500.0,0.00035973,5]
[359259270,1745874647721,-500.0,0.00035973,5]
[359259272,1745874647731,-548.82592614,0.00035973,3]
[359259274,1745874647740,-500.0,0.00035973,5]
[359259276,1745874647750,-152.0,0.00035973,8]
[359259278,1745874647759,-77379.9202753,0.0003598,2]
[359259280,1745874647769,-46427.9521652,0.0003598,2]
[359259282,1745874647779,-28663.1872321,0.0003598,2]
[359259284,1745874647788,-157.31,0.0003598,2]
[359259286,1745874647798,-172956.06065522,0.0003599,2]
[359259288,1745874647807,-92855.9043304,0.0003599,2]
[359259289,1745874647817,-85989.5616963,0.0003599,2]
[359259291,1745874647826,-646.41101251,0.00036,2]
[359259293,1745874647836,-160347.19782174,0.00036,2]
[359259295,1745874647845,-653.23,0.00036038,2]
[359259297,1745874647855,-1824.76311438,0.00036097,2]
[359259299,1745874647865,-150.0,0.00036183,2]
[359259301,1745874647875,-4848.9815612,0.00036245,13]
[359259303,1745874647884,-28663.1872321,0.00036257,2]
[359259306,1745874647894,-157.31,0.00036257,2]
[359259307,1745874647903,-30951.9681101,0.00036267,2]
[359259309,1745874647912,-3829.5450125,0.00036275,2]
[359259312,1745874647922,-3829.5450125,0.00036659,2]
[359259313,1745874647932,-150.0,0.00036669,2]
[359259315,1745874647941,-150.0,0.00036817,2]
[359259318,1745874647950,-267.46074303,0.00036853,2]
[359259319,1745874647960,-150.0,0.00036864,2]
[359259322,1745874647970,-1824.76311438,0.00036911,2]
[359259323,1745874647979,-4848.9815612,0.00036934,13]
[359259325,1745874647989,-150.0,0.00036945,2]
[359259328,1745874647999,-562.8771431,0.00036958,4]
[359259329,1745874648009,-969.91,0.00037,2]
[359259331,1745874648018,-750.0,0.00037,2]
[359259333,1745874648028,-150.0,0.00037023,2]
[359259335,1745874648037,-3829.5450125,0.00037044,2]
[359259337,1745874648047,-150.0,0.0003708,2]
[359259339,1745874648059,-150.0,0.00037111,2]
[359259341,1745874648069,-152.0,0.0003722,9]
[359259343,1745874648079,-150.0,0.00037267,2]
[359259345,1745874648088,-150.0,0.00037347,2]
[359259347,1745874648098,-3829.5450125,0.00037429,2]
[359259349,1745874648107,-150.0,0.00037446,2]
[359259351,1745874648117,-156.64094308,0.00037478,2]
[359259353,1745874648127,-2640.4573554,0.0003749,2]
[359259355,1745874648137,-1068.66455563,0.000375,2]
[359259357,1745874648146,-150.0,0.00037504,2]
[359259359,1745874648155,-200.0,0.00037508,2]
[359259361,1745874648165,-28663.1872321,0.0003754,3]
[359259363,1745874648175,-150.0,0.00037541,2]
[359259365,1745874648185,-15475.9840551,0.00037551,2]
[359259367,1745874648194,-15475.9840551,0.00037569,2]
[359259369,1745874648204,-15475.9840551,0.00037579,2]
[359259371,1745874648213,-1090.67703653,0.00037583,5]
[359259373,1745874648223,-1124.14005875,0.00037583,5]
[359259375,1745874648233,-1107.8788454,0.00037583,5]
[359259377,1745874648241,-304.72,0.00037588,2]
[359259379,1745874648251,-1090.2042509,0.00037589,5]
[359259381,1745874648260,-1064.80157476,0.00037589,5]
[359259383,1745874648269,-1071.94271199,0.00037589,5]
[359259385,1745874648279,-1121.49139232,0.00037589,5]
[359259387,1745874648288,-1045.91003521,0.00037589,5]
[359259389,1745874648298,-1045.81744474,0.00037589,5]
[359259391,1745874648307,-1088.91121771,0.00037589,5]
[359259393,1745874648316,-4207.77728993,0.0003759,2]
[359259395,1745874648326,-200.0,0.00037615,2]
[359259397,1745874648335,-4848.9815612,0.00037624,14]
[359259399,1745874648344,-150.0,0.00037708,2]
[359259401,1745874648354,-1824.76311438,0.00037724,2]
[359259403,1745874648364,-150.0,0.00037727,2]
[359259405,1745874648373,-168.51679632,0.000378,2]
[359259407,1745874648382,-714.34810782,0.000378,4]
[359259409,1745874648392,-3829.5450125,0.00037813,2]
[359259411,1745874648401,-150.0,0.00037881,2]
[359259413,1745874648411,-167.11187233,0.0003789,2]
[359259415,1745874648420,-158.90007297,0.000379,11]
[359259417,1745874648429,-150.0,0.00037938,2]
[359259418,1745874648438,-28663.1872321,0.0003794,3]
[359259420,1745874648447,-15475.9840551,0.00037951,3]
[359259422,1745874648456,-150.0,0.00037966,2]
[359259424,1745874648465,-150.0,0.0003799,2]
[359259426,1745874648475,-15475.9840551,0.0003799,3]
[359259428,1745874648484,-176.20893454,0.0003799,2]
[359259430,1745874648493,-200.0,0.00037991,2]
[359259432,1745874648503,-1541.29456778,0.00038,15]
[359259434,1745874648512,-19203.33557564,0.00038,2]
[359259436,1745874648521,-691.72,0.00038,2]
[359259438,1745874648531,-150.0,0.00038,2]
[359259440,1745874648540,-150.0,0.00038007,2]
[359259442,1745874648549,-150.0,0.00038007,2]
[359259444,1745874648559,-1267.87,0.00038066,5]
[359259446,1745874648569,-1230.65,0.00038066,5]
[359259448,1745874648578,-150.0,0.00038073,2]
[359259450,1745874648588,-150.0,0.00038099,2]
[359259452,1745874648597,-28663.1872321,0.00038129,3]
[359259454,1745874648608,-15475.9840551,0.00038139,3]
[359259456,1745874648617,-882.6362199,0.00038141,2]
[359259458,1745874648626,-15475.9840551,0.00038164,3]
[359259460,1745874648636,-767.96793025,0.00038169,5]
[359259462,1745874648645,-3829.5450125,0.00038198,2]
[359259464,1745874648654,-277.35679052,0.00038222,2]
[359259466,1745874648664,-151.0,0.00038223,7]
[359259468,1745874648674,-151.0,0.00038223,7]
[359259470,1745874648683,-274.68332,0.00038223,7]
[359259472,1745874648693,-151.0,0.00038223,7]
[359259474,1745874648703,-151.0,0.00038223,7]
[359259476,1745874648712,-151.0,0.00038223,7]
[359259478,1745874648722,-151.0,0.00038223,7]
[359259480,1745874648732,-151.0,0.00038223,7]
[359259482,1745874648741,-151.0,0.00038223,7]
[359259484,1745874648751,-151.0,0.00038223,7]
[359259486,1745874648761,-151.0,0.00038223,7]
[359259488,1745874648770,-150.0,0.00038289,2]
[359259490,1745874648779,-28663.1872321,0.00038295,3]
[359259492,1745874648789,-157.31,0.00038295,2]
[359259494,1745874648798,-253.432125,0.00038296,7]
[359259496,1745874648808,-151.0,0.00038296,7]
[359259498,1745874648817,-151.0,0.00038296,7]
[359259500,1745874648828,-151.0,0.00038296,7]
[359259502,1745874648838,-151.0,0.00038296,7]
[359259504,1745874648847,-653.23,0.00038302,2]
[359259506,1745874648856,-46427.9521652,0.00038306,3]
[359259508,1745874648866,-28663.1872321,0.00038306,3]
[359259510,1745874648876,-4848.9815612,0.00038314,14]
[359259512,1745874648885,-61903.9362203,0.00038315,3]
[359259514,1745874648894,-57326.3744642,0.00038315,3]
[359259516,1745874648903,-151.0,0.00038316,7]
[359259518,1745874648913,-151.0,0.00038325,7]
[359259520,1745874648922,-151.0,0.00038325,7]
[359259522,1745874648931,-288.479697,0.00038325,7]
[359259524,1745874648940,-151.0,0.00038325,7]
[359259526,1745874648950,-177.554938,0.00038325,7]
[359259528,1745874648959,-150.0,0.00038325,3]
[359259530,1745874648969,-151.0,0.00038325,7]
[359259532,1745874648979,-151.0,0.00038325,7]
[359259534,1745874648988,-151.0,0.00038325,7]
[359259536,1745874648998,-108331.888385,0.00038326,3]
[359259538,1745874649008,-157.31,0.00038336,2]
[359259540,1745874649017,-151.0,0.00038336,7]
[359259542,1745874649027,-151.0,0.00038336,7]
[359259544,1745874649037,-151.0,0.00038336,7]
[359259545,1745874649048,-666.348035,0.00038336,7]
[359259547,1745874649060,-151.0,0.00038336,7]
[359259549,1745874649069,-666.348035,0.00038336,7]
[359259551,1745874649079,-151.0,0.00038336,7]
[359259553,1745874649088,-151.0,0.00038336,7]
[359259555,1745874649098,-151.0,0.00038336,7]
[359259557,1745874649108,-151.0,0.00038336,7]
[359259569,1745874649276,-151.0,0.00038336,7]
[359259570,1745874649285,-151.0,0.00038336,7]
[359259571,1745874649295,-151.0,0.00038336,7]
[359259572,1745874649305,-151.0,0.00038336,7]
[359259573,1745874649315,-151.0,0.00038336,7]
[359259574,1745874649324,-151.0,0.00038336,7]
[359259575,1745874649334,-151.0,0.00038336,7]
[359259576,1745874649344,-151.0,0.00038336,7]
[359259577,1745874649354,-151.0,0.00038336,7]
[359259578,1745874649363,-151.0,0.00038336,7]
[359259580,1745874649372,-151.0,0.00038336,7]
[359259582,1745874649381,-151.0,0.00038336,7]
[359259584,1745874649390,-259.242694,0.00038336,7]
[359259586,1745874649400,-151.0,0.00038336,7]
[359259588,1745874649409,-151.0,0.00038336,7]
[359259590,1745874649418,-151.0,0.00038336,7]
[359259592,1745874649427,-151.0,0.00038336,7]
[359259594,1745874649437,-378.924742,0.00038336,7]
[359259596,1745874649446,-378.924742,0.00038336,7]
[359259598,1745874649456,-151.0,0.00038336,7]
[359259600,1745874649465,-312.639229,0.00038336,7]
[359259602,1745874649474,-312.639229,0.00038336,7]
[359259604,1745874649483,-151.0,0.00038336,7]
[359259606,1745874649492,-151.0,0.00038336,7]
[359259608,1745874649502,-151.0,0.00038336,7]
[359259610,1745874649511,-234.276183,0.00038336,7]
[359259612,1745874649520,-167.798303,0.00038336,7]
[359259613,1745874649529,-167.798303,0.00038336,7]
[359259615,1745874649539,-151.0,0.00038336,7]
[359259617,1745874649548,-151.0,0.00038336,7]
[359259620,1745874649557,-151.0,0.00038336,7]
[359259621,1745874649567,-611.949345,0.00038336,7]
[359259624,1745874649576,-611.949345,0.00038336,7]
[359259625,1745874649586,-151.0,0.00038336,7]
[359259627,1745874649595,-319.12064695,0.00038345,10]
[359259630,1745874649604,-500.0,0.00038345,10]
[359259631,1745874649614,-216422.25093149,0.00038346,3]
[359259675,1745874650022,-2708.8836472,0.00038346,3]
[359259743,1745874650673,-404.41776448,0.00025888,2]
[359259745,1745874650682,-714.38223552,0.00028795,2]
[359259750,1745874650720,-43.12776448,0.00028795,2]
[359259752,1745874650730,-151.0,0.00038296,7]
[359259754,1745874650739,-288.966091,0.00038325,7]
[359259756,1745874650748,-6511.42214452,0.00038346,3]
[359262448,1745874722384,200.0,0.00036444,117]
[359262449,1745874722502,200.0,0.00035229,117]
[359262456,1745874971079,777.01,0.00038356,120]
[359262457,1745875109563,7280.575,0.00037972,120]
[359262458,1745875109603,438.133,0.00037619,49]
[359262459,1745875109644,7280.576,0.00037972,120]
[359262460,1745875109682,7280.576,0.00037972,120]
[359262461,1745875109733,7280.575,0.00037972,120]
[359262462,1745875109795,7280.576,0.00037972,120]
[359262463,1745875119315,570.44940043,0.00038246,45]
[359262464,1745875202662,200.0,0.00029996,117]
[359262465,1745875292098,-207.4,0.0002727,2]
[359262466,1745875292120,-250.0,0.00027333,2]
[359262467,1745875292142,-1000.0,0.00027397,2]
[359262468,1745875292163,-221.23682882,0.00028635,2]
[359262469,1745875292185,-215.0738,0.00028639,2]
[359262470,1745875292207,-154.29,0.00028735,2]
[359262471,1745875292230,-152.0,0.00029989,3]
[359262472,1745875292251,-242.641,0.00029996,2]
[359262473,1745875292273,-250.0,0.00029996,2]
[359262474,1745875292295,-250.0,0.00029996,2]
[359262475,1745875318420,-223.0315306,0.00030008,2]
[359262476,1745875318442,-150.0,0.00030105,2]
[359262477,1745875318467,-231.28369723,0.00031377,2]
[359262478,1745875318487,-150.0,0.00031475,2]
[359262479,1745875318508,-152.0,0.00031485,4]
[359262480,1745875324804,151.04314335,0.0002727,2]
[359262481,1745875539534,250.0,0.00017,2]
[359262482,1745875540633,300.0,0.00019,2]
[359262483,1745875555996,1341.55349227,0.00038356,30]
[359262484,1745875556029,17175.48727969,6.94e-05,2]
[359262485,1745875568141,2406.12221413,8e-05,2]
[359262486,1745875631981,1683.35991904,0.00015,2]
[359262487,1745875635633,1518.03058714,0.00015,2]
[359262488,1745875635657,818.01184324,0.00015,2]
[359262489,1745875638179,205.0,9.8e-05,2]
[359262490,1745875642054,1642.98815676,0.0001305,2]
[359262491,1745875642082,3518.81603006,0.0001305,2]
[359262492,1745875674361,4274.79492371,0.00013,2]
[359262493,1745875677387,6892.95421434,0.0001,2]
[359262494,1745875716796,6331.84355202,0.000149,2]
[359262496,1745875722378,489.98669008,0.000154,2]
[359262497,1745875726223,19310.59858988,0.00013368,2]
[359262505,1745875727561,152.98758402,0.000189,2]
[359262506,1745875735565,284.86,0.00027097,120]
[359262507,1745875735789,284.86,0.00029807,120]
[359262508,1745875736001,284.86,0.00032516,120]
[359262513,1745875794562,744.63,0.00038356,120]
[359262514,1745875811247,250.0,0.00036986,60]
[359262520,1745875831641,-1200.0,0.00019599,2]
[359262521,1745875831650,-300.0,0.00019599,2]
[359262522,1745875831660,-749.52804191,0.000196,2]
[359262523,1745875831693,-600.88592764,0.000196,2]
[359262524,1745875831706,-1899.99999,0.000196,2]
[359262525,1745875831756,-673.82266055,0.000196,2]
[359262532,1745875837466,-29266.19025673,0.000196,2]
[359262533,1745875837475,-731.22053144,0.0001987,2]
[359262534,1745875837485,-9355.35988526,0.000199,2]
[359262535,1745875837495,-709.83352964,0.000199,2]
[359262536,1745875837504,-298.99874308,0.000199,2]
[359262537,1745875837514,-290.73235477,0.000199,2]
[359262538,1745875837524,-898.12108993,0.000199,2]
[359262539,1745875837533,-333.04320394,0.00019998,2]
[359262540,1745875837543,-225.07043049,0.00019998,2]
[359262541,1745875837552,-500.0,0.00019998,2]
[359262542,1745875837562,-85713.46761761,0.00019999,2]
[359262543,1745875837571,-174.29444907,0.00019999,2]
[359262544,1745875837580,-500.0,0.00019999,2]
[359262545,1745875837590,-500.0,0.00019999,2]
[359262546,1745875837599,-328.68352365,0.00019999,2]
[359262547,1745875837608,-500.0,0.00019999,2]
[359262548,1745875837617,-500.0,0.00019999,2]
[359262549,1745875837829,-256344.26785074,0.0002,2]
[359262550,1745875837840,-37340.18557535,0.0002,2]
[359262551,1745875837849,-73545.62413803,0.0002,2]
[359262552,1745875837858,-5772.0,0.0002001,2]
[359262553,1745875837867,-279302.10976215,0.0002018,2]
[359262554,1745875837878,-1156.71180127,0.0002018,2]
[359262555,1745875837896,-19366.55747602,0.0002018,2]
[359262556,1745875837941,-936.60724661,0.0002018,2]
[359262557,1745875837966,-879.20342316,0.0002018,2]
[359262558,1745875837981,-4506.39768919,0.0002018,2]
[359262746,1745875839794,-1049.67999763,0.0002018,2]
[359262794,1745875843449,-7655.29476894,0.0002018,2]
[359262799,1745875845776,-11020.72535364,0.0002018,2]
[359262800,1745875845810,-2683.74842436,0.0002018,2]
[359262801,1745875845826,-931.70807994,0.0002018,2]
[359262802,1745875845838,-759.0053,0.0002018,2]
[359262818,1745876061491,3540.98146951,0.00038356,30]
[359262819,1745876162695,2000.0,0.00038356,30]
[359262820,1745876233242,-221.23682881,0.0002008,2]
[359262821,1745876233264,-1200.0,0.00020179,2]
[359262822,1745876233288,-300.0,0.00020179,2]